Workbook

Sheet Тит. лист
C2: УТВЕРЖДАЮ:
C3: Директор МАОУ Азигуловская СОШ
D5: ______________________ | G5: Р,М,Валиев.________________________ | H5: 2025-08-30
F10: Примерное рекомендуемое двухнедельное меню и пищевая ценность приготовляемых блюд и кулинарных изделий для детей общеобразовательных классов и для детей с ограниченными возможностями здоровья, возрастная категория с 7-11 лет сезон: осень-зима 2023-2024 учебный год
H23: 2025-2026 учебный год

Sheet 1
A2: МЕНЮ
A3: День: первый
A5: Возрастная категория: Учащиеся с 7 лет и старше | E5: сезон :осень-зима
A7: Обед: льготники, ОВЗ, родительская плата
A9: № тех. Карты | B9: Наименование блюда | C9: Выход, г | D9: Белки, г | E9: Жиры, г | F9: Углеводы, г | G9: ЭЦ, ккал | H9: Минеральные элементы (мг) | L9: Витамины | P9: Алкоголь, г | Q9: Валин | R9: изолейцин | S9: лейцин | T9: лизин | U9: метионин | V9: треонин | W9: триптофан | X9: фенилаланин | Y9: аланин | Z9: аргинин | AA9: аспарагиновая | AB9: гистидин | AC9: глицин | AD9: глутаминовая | AE9: оксипролин | AF9: пролин | AG9: серин | AH9: тирозин | AI9: цистин | AJ9: масляная | AK9: капроновая | AL9: каприловая | AM9: каприновая | AN9: лауриновая | AO9: миристиновая | AP9: пентадекановая | AQ9: пальмитиновая | AR9: маргариновая | AS9: стеариновая | AT9: арахиновая | AU9: бегеновая | AV9: лигноцериновая | AW9: миристолеиновая | AX9: пальмитолеиновая | AY9: олеиновая | AZ9: гадолеиновая | BA9: эруковая
H10: Ca | I10: Mg | J10: P | K10: Fe | L10: Е,мг | M10: А,мкг | N10: В1,мг | O10: С,мг
B11: Обед
P12: 0 | Q12: 0 | R12: 0 | S12: 287.64 | T12: 197.4 | U12: 90.24 | V12: 141 | W12: 67.68 | X12: 293.28 | Y12: 228.42 | Z12: 276.36 | AA12: 358.14 | AB12: 129.72 | AC12: 231.24 | AD12: 1350.78 | AE12: 0 | AF12: 738.84 | AG12: 219.96 | AH12: 169.2 | AI12: 112.8 | AJ12: 0.05 | AK12: 0.04 | AL12: 0.02 | AM12: 0.04 | AN12: 0.05 | AO12: 0.01 | AP12: 0.02 | AQ12: 0.1 | AR12: 0.01 | AS12: 0.02 | AT12: 0 | AU12: 0 | AV12: 0 | AW12: 0 | AX12: 0 | AY12: 0.17 | AZ12: 0 | BA12: 0
A13: 148/Пермь, 2018 | B13: Свежие помидоры порционно | C13: 60 | D13: 1.1 | E13: 0.33 | F13: 3.7 | G13: 20 | H13: 25.5 | I13: 13.8 | J13: 40.1 | K13: 0.51 | L13: 1.3 | M13: 0 | N13: 0.03 | O13: 25 | P13: 0 | Q13: 0 | R13: 0 | S13: 95.31 | T13: 57.04 | U13: 22.39 | V13: 48.69 | W13: 18.73 | X13: 62.24 | Y13: 58.61 | Z13: 98.08 | AA13: 79.17 | AB13: 26.12 | AC13: 47.29 | AD13: 331.28 | AE13: 0.26 | AF13: 85.36 | AG13: 63.07 | AH13: 37.75 | AI13: 24.15 | AJ13: 0.09 | AK13: 0.05 | AL13: 0.02 | AM13: 0.05 | AN13: 0.09 | AO13: 0.23 | AP13: 0.01 | AQ13: 0.55 | AR13: 0.01 | AS13: 0.17 | AT13: 0.42 | AU13: 0.1 | AV13: 0 | AW13: 0 | AX13: 0.07 | AY13: 0.64 | AZ13: 0 | BA13: 0
A14: 123/Пермь, 2018 | B14: Суп картофельный с рыб. Консервами | C14: 250 | D14: 8.75 | E14: 11.4 | F14: 13.5 | G14: 191.5 | H14: 31.2 | I14: 34.7 | J14: 153 | K14: 1.13 | L14: 0.2 | M14: 15 | N14: 0.09 | O14: 7.95 | P14: 0 | Q14: 0 | R14: 0 | S14: 18.84 | T14: 20.17 | U14: 14.92 | V14: 74.29 | W14: 3.15 | X14: 18.45 | Y14: 38.01 | Z14: 118.57 | AA14: 109.67 | AB14: 15.08 | AC14: 8.16 | AD14: 138.12 | AE14: 2 | AF14: 147.72 | AG14: 103.75 | AH14: 15.18 | AI14: 22.36 | AJ14: 0.03 | AK14: 0.02 | AL14: 0.01 | AM14: 0.02 | AN14: 0.03 | AO14: 0.05 | AP14: 0.01 | AQ14: 0.12 | AR14: 0.01 | AS14: 0.04 | AT14: 0.03 | AU14: 0.02 | AV14: 0 | AW14: 0 | AX14: 0.04 | AY14: 0.18 | AZ14: 0 | BA14: 0
A15: 256/Пермь, 2018 | B15: Макаронные изделия отварные ( гарнир) | C15: 120 | D15: 6.66 | E15: 0.54 | F15: 35.5 | G15: 228.42 | H15: 16.5 | I15: 10.7 | J15: 54.5 | K15: 1.29 | L15: 1 | M15: 41.2 | N15: 0.06 | O15: 0 | P15: 0 | Q15: 0 | R15: 0 | S15: 267.62 | T15: 243.32 | U15: 81.3 | V15: 170.02 | W15: 43.61 | X15: 200.92 | Y15: 245.76 | Z15: 288.4 | AA15: 540.72 | AB15: 113 | AC15: 176.53 | AD15: 999.62 | AE15: 22 | AF15: 225.37 | AG15: 208.65 | AH15: 167.68 | AI15: 70.25 | AJ15: 0.21 | AK15: 0.1 | AL15: 0.05 | AM15: 0.11 | AN15: 0.19 | AO15: 1.91 | AP15: 0.02 | AQ15: 54.59 | AR15: 0.02 | AS15: 61.93 | AT15: 2.94 | AU15: 0.21 | AV15: 0 | AW15: 0.01 | AX15: 2.41 | AY15: 78.64 | AZ15: 0.03 | BA15: 0.06
A16: 367/Пермь, 2018 | B16: Птица в соусе томатном | C16: 100 | D16: 13.6 | E16: 14.4 | F16: 2.4 | G16: 193.6 | H16: 22.4 | I16: 16 | J16: 64 | K16: 1.14 | L16: 0.56 | M16: 92.56 | N16: 0.03 | O16: 0.8 | P16: 0 | Q16: 0 | R16: 0 | S16: 395.52 | T16: 140.08 | U16: 122.01 | V16: 150.51 | W16: 46.34 | X16: 292.46 | Y16: 207.75 | Z16: 516.71 | AA16: 458.84 | AB16: 132.79 | AC16: 278.25 | AD16: 1372.15 | AE16: 35.91 | AF16: 358.44 | AG16: 233.99 | AH16: 158.6 | AI16: 81.56 | AJ16: 0.27 | AK16: 0.32 | AL16: 0.23 | AM16: 0.54 | AN16: 0.08 | AO16: 0.22 | AP16: 0.04 | AQ16: 0.68 | AR16: 0.03 | AS16: 0.24 | AT16: 0.21 | AU16: 0.16 | AV16: 0 | AW16: 0.26 | AX16: 0.12 | AY16: 6.14 | AZ16: 0.01 | BA16: 0
A17: 486/Пермь, 2001 | B17: Компот из свежих плодов и ягод | C17: ="200" -> 200 | D17: 0.31 | E17: 0.2 | F17: 14.2 | G17: 60 | H17: 13.5 | I17: 5.9 | J17: 8 | K17: 1.2 | L17: 0.1 | M17: 0 | N17: 0.02 | O17: 3.3 | P17: 0.2 | Q17: 0 | R17: 0 | S17: 35.28 | T17: 41.01 | U17: 24.99 | V17: 109.51 | W17: 6.26 | X17: 33.72 | Y17: 55.73 | Z17: 169.95 | AA17: 159.14 | AB17: 23.3 | AC17: 14.92 | AD17: 216.02 | AE17: 8.46 | AF17: 202.05 | AG17: 143.02 | AH17: 25.97 | AI17: 31.99 | AJ17: 0 | AK17: 0 | AL17: 0.15 | AM17: 0.13 | AN17: 0.01 | AO17: 0.02 | AP17: 0 | AQ17: 0.62 | AR17: 0 | AS17: 0.28 | AT17: 0.05 | AU17: 0 | AV17: 0 | AW17: 0 | AX17: 0.03 | AY17: 1.62 | AZ17: 0 | BA17: 0
A18: Смак | B18: Хлеб пшеничный витаминный | C18: 40 | D18: 3.08 | E18: 0.44 | F18: 19.16 | G18: 94.4 | H18: 9.2 | I18: 0.15 | J18: 1.92 | K18: 0.84 | L18: 0 | M18: 0 | N18: 0.06 | O18: 0 | P18: 0 | Q18: 0 | R18: 0 | S18: 128.1 | T18: 66.9 | U18: 27.9 | V18: 59.4 | W18: 24 | X18: 111.3 | Y18: 89.1 | Z18: 87.3 | AA18: 139.2 | AB18: 37.2 | AC18: 93 | AD18: 458.7 | AE18: 81 | AF18: 157.8 | AG18: 87.3 | AH18: 54 | AI18: 39 | AJ18: 0 | AK18: 0 | AL18: 0 | AM18: 0 | AN18: 0 | AO18: 0 | AP18: 0.06 | AQ18: 0.04 | AR18: 0.03 | AS18: 0 | AT18: 0.01 | AU18: 0 | AV18: 0 | AW18: 0 | AX18: 0 | AY18: 0.03 | AZ18: 0 | BA18: 0
A19: Смак | B19: Хлеб "Дарницкий" | C19: 20 | D19: 3.32 | E19: 0.6 | F19: 16.7 | G19: 86.89 | H19: 17.5 | I19: 16 | J19: 1.92 | K19: 1.95 | L19: 0 | M19: 0 | N19: 0.06 | O19: 0 | P19: 0 | Q19: 0 | R19: 0 | S19: 127.24 | T19: 42.2 | U19: 25.01 | V19: 50.03 | W19: 18.92 | X19: 90.48 | Y19: 56.12 | Z19: 78.3 | AA19: 64.6 | AB19: 33.93 | AC19: 60.03 | AD19: 501.99 | AE19: 58.73 | AF19: 163.56 | AG19: 71.12 | AH19: 47.2 | AI19: 37.41 | AJ19: 0 | AK19: 0 | AL19: 0 | AM19: 0 | AN19: 0 | AO19: 0 | AP19: 0.03 | AQ19: 0.02 | AR19: 0.02 | AS19: 0 | AT19: 0 | AU19: 0 | AV19: 0 | AW19: 0 | AX19: 0 | AY19: 0.02 | AZ19: 0 | BA19: 0
B20: Итого за прием | C20: 830 | D20: =SUM(D13:D19) -> 36.82 | E20: 27.91 | F20: 105.16 | G20: 874.81 | H20: 135.8 | I20: 97.25 | J20: 323.44 | K20: 8.06 | L20: 3.16 | M20: 148.76 | N20: 0.35 | O20: 37.05 | P20: 0 | Q20: 0 | R20: 0 | S20: 1355.54 | T20: 808.1 | U20: 408.77 | V20: 803.45 | W20: 228.7 | X20: 1102.85 | Y20: 979.49 | Z20: 1633.68 | AA20: 1909.47 | AB20: 511.15 | AC20: 909.42 | AD20: 5368.66 | AE20: 208.35 | AF20: 2079.13 | AG20: 1130.84 | AH20: 675.58 | AI20: 419.52 | AJ20: 0.66 | AK20: 0.53 | AL20: 0.49 | AM20: 0.9 | AN20: 0.45 | AO20: 2.44 | AP20: 0.2 | AQ20: 56.72 | AR20: 0.12 | AS20: 62.69 | AT20: 3.66 | AU20: 0.49 | AV20: 0 | AW20: 0.28 | AX20: 2.68 | AY20: 87.43 | AZ20: 0.04 | BA20: 0.06

Sheet 2
A2: МЕНЮ
A3: День: второй | E3: весна-лето
A5: Возрастная категория: Учащиеся с 7 лет и старше | F5: сезон: осень-зима
A7: Обед: льготники, ОВЗ, родительская плата
A10: № тех. карты | B10: Наименование блюда | C10: Выход порции, г | D10: Белки, г | E10: Жиры, г | F10: Углеводы, г | G10: ЭЦ, ккал | H10: Минеральные элементы (мг) | L10: Витамины | P10: Алкоголь, г | Q10: Валин | R10: изолейцин | S10: лейцин | T10: лизин | U10: метионин | V10: треонин | W10: триптофан | X10: фенилаланин | Y10: аланин | Z10: аргинин | AA10: аспарагиновая | AB10: гистидин | AC10: глицин | AD10: глутаминовая | AE10: оксипролин | AF10: пролин | AG10: серин | AH10: тирозин | AI10: цистин | AJ10: масляная | AK10: капроновая | AL10: каприловая | AM10: каприновая | AN10: лауриновая | AO10: миристиновая | AP10: пентадекановая | AQ10: пальмитиновая | AR10: маргариновая | AS10: стеариновая | AT10: арахиновая | AU10: бегеновая | AV10: лигноцериновая | AW10: миристолеиновая | AX10: пальмитолеиновая | AY10: олеиновая | AZ10: гадолеиновая | BA10: эруковая | BB10: линолевая | BC10: линоленовая | BD10: арахидоновая | BE10: Аденин | BF10: Гуанин
H11: Ca | I11: Mg | J11: P | K11: Fe | L11: Е,мг | M11: А,мкг | N11: В1,мг | O11: С,мг
B12: Обед
P13: 0 | Q13: 0 | R13: 0 | S13: 21.52 | T13: 23.91 | U13: 4.18 | V13: 17.33 | W13: 4.78 | X13: 14.94 | Y13: 16.15 | Z13: 13.75 | AA13: 82.51 | AB13: 9.56 | AC13: 11.97 | AD13: 306.73 | AE13: 161.61 | AF13: 11.37 | AG13: 15.55 | AH13: 14.93 | AI13: 3 | AJ13: 0 | AK13: 0 | AL13: 0 | AM13: 0 | AN13: 0 | AO13: 0.01 | AP13: 0.11 | AQ13: 0.02 | AR13: 0.06 | AS13: 0.01 | AT13: 0 | AU13: 0.42 | AV13: 0.06 | AW13: 0 | AX13: 0 | AY13: 0.02 | AZ13: 0 | BA13: 0.01 | BB13: 0 | BC13: 0 | BD13: 0 | BE13: 0 | BF13: 0 | BG13: 56
A14: 148/Пермь, 2018 | B14: Свежие огурцы (порционно) | C14: 60 | D14: 0.7 | E14: 0.1 | F14: 1.9 | G14: 11 | H14: 18 | I14: 14 | J14: 30.2 | K14: 0.51 | L14: 0.1 | M14: 0 | N14: 0.03 | O14: 3.5 | P14: 0 | Q14: 0 | R14: 0 | S14: 619.78 | T14: 361.4 | U14: 183.6 | V14: 330.73 | W14: 80.56 | X14: 450.46 | Y14: 386.37 | Z14: 974.66 | AA14: 975.56 | AB14: 218.97 | AC14: 448.81 | AD14: 1882.23 | AE14: 41.08 | AF14: 530.88 | AG14: 445.26 | AH14: 272.97 | AI14: 125.04 | AJ14: 0.39 | AK14: 0.48 | AL14: 0.35 | AM14: 0.85 | AN14: 0.11 | AO14: 0.51 | AP14: 0.01 | AQ14: 5.2 | AR14: 0.01 | AS14: 4.47 | AT14: 0.65 | AU14: 0.3 | AV14: 0 | AW14: 0.45 | AX14: 0.33 | AY14: 15.49 | AZ14: 0 | BA14: 0 | BB14: 5.04 | BC14: 0.18 | BD14: 0.04 | BE14: 0 | BF14: 0 | BG14: 0
A15: 95/Пермь, 2018 | B15: Борщ с капустой и картофелем со сметаной | C15: 250 | D15: 1.93 | E15: 5.43 | F15: 7.32 | G15: 85.93 | H15: 40.88 | I15: 25.68 | J15: 52.88 | K15: 1.22 | L15: 2.4 | M15: 0 | N15: 0.05 | O15: 7.48 | P15: 0 | Q15: 0 | R15: 0 | S15: 1519.89 | T15: 595.92 | U15: 541.48 | V15: 654.19 | W15: 176.85 | X15: 1133.81 | Y15: 925.42 | Z15: 2446.73 | AA15: 2233.01 | AB15: 552.71 | AC15: 1171.85 | AD15: 4640.25 | AE15: 4.1 | AF15: 1197.84 | AG15: 993.63 | AH15: 674.99 | AI15: 295.57 | AJ15: 1.03 | AK15: 1.46 | AL15: 1.1 | AM15: 2.69 | AN15: 0.1 | AO15: 0.58 | AP15: 0.02 | AQ15: 4.13 | AR15: 0.01 | AS15: 1.26 | AT15: 0.81 | AU15: 0.63 | AV15: 0 | AW15: 1.35 | AX15: 0.36 | AY15: 32.9 | AZ15: 0 | BA15: 0 | BB15: 12.7 | BC15: 0.36 | BD15: 0.12 | BE15: 0 | BF15: 0 | BG15: 0
A16: 328/Пермь, 2021 | B16: Жаркое по домашнему | C16: 180 | D16: 18.8 | E16: 14.3 | F16: 25.8 | G16: 307 | H16: 31 | I16: 54 | J16: 209 | K16: 3.36 | L16: 0.6 | M16: 24 | N16: 0.18 | O16: 209 | P16: 0 | Q16: 0 | R16: 0 | S16: 1381.03 | T16: 1160.57 | U16: 443.68 | V16: 678.39 | W16: 184.32 | X16: 844.6 | Y16: 934.85 | Z16: 1366.85 | AA16: 1753.87 | AB16: 604.67 | AC16: 935.63 | AD16: 3380.86 | AE16: 194.99 | AF16: 767.19 | AG16: 776.37 | AH16: 604.22 | AI16: 247.45 | AJ16: 0.44 | AK16: 0.53 | AL16: 0.39 | AM16: 0.94 | AN16: 0.1 | AO16: 0.55 | AP16: 0.02 | AQ16: 2.01 | AR16: 0.01 | AS16: 0.66 | AT16: 0.28 | AU16: 0.23 | AV16: 0 | AW16: 0.51 | AX16: 0.21 | AY16: 11.7 | AZ16: 0.01 | BA16: 0 | BB16: 5.41 | BC16: 0.13 | BD16: 0.03 | BE16: 0 | BF16: 0 | BG16: 0
A17: 253/Пермь, 2001 | B17: Компот из плодов или ягод сушёных вит. с аск. кис-той | C17: ="200" -> 200 | D17: 0.33 | E17: 0 | F17: 22.66 | G17: 91.98 | H17: 16.4 | I17: 4.3 | J17: 10.7 | K17: 0.9 | L17: 0.1 | M17: 0 | N17: 0 | O17: 0.1 | P17: 0 | Q17: 0 | R17: 0 | S17: 33.71 | T17: 39.77 | U17: 24.96 | V17: 108.57 | W17: 5.92 | X17: 32.86 | Y17: 54.15 | Z17: 168.64 | AA17: 152.31 | AB17: 22.7 | AC17: 13.68 | AD17: 211.51 | AE17: 8.46 | AF17: 201.07 | AG17: 141.85 | AH17: 24.96 | AI17: 31.73 | AJ17: 0.01 | AK17: 0.01 | AL17: 0 | AM17: 0.01 | AN17: 0.01 | AO17: 0 | AP17: 0 | AQ17: 0.09 | AR17: 0 | AS17: 0.01 | AT17: 0.01 | AU17: 0 | AV17: 0 | AW17: 0 | AX17: 0.02 | AY17: 0.07 | AZ17: 0 | BA17: 0 | BB17: 0.15 | BC17: 0.11 | BD17: 0.01 | BE17: 0 | BF17: 0 | BG17: 0
A18: Смак | B18: Хлеб "Дарницкий" | C18: 20 | D18: 2.64 | E18: 0.44 | F18: 16.4 | G18: 84 | H18: 17.5 | I18: 16 | J18: 1.92 | K18: 1.95 | L18: 0 | M18: 0 | N18: 0.15 | O18: 0 | P18: 0 | Q18: 0 | R18: 0 | S18: 152.69 | T18: 50.63 | U18: 30.02 | V18: 60.03 | W18: 22.71 | X18: 108.58 | Y18: 67.34 | Z18: 93.96 | AA18: 77.52 | AB18: 40.72 | AC18: 72.04 | AD18: 602.39 | AE18: 70.47 | AF18: 196.27 | AG18: 85.35 | AH18: 56.64 | AI18: 44.89 | AJ18: 0 | AK18: 0 | AL18: 0 | AM18: 0 | AN18: 0 | AO18: 0 | AP18: 0.04 | AQ18: 0.02 | AR18: 0.02 | AS18: 0 | AT18: 0 | AU18: 0 | AV18: 0 | AW18: 0 | AX18: 0 | AY18: 0.02 | AZ18: 0 | BA18: 0 | BB18: 0.08 | BC18: 0 | BD18: 0 | BE18: 0 | BF18: 0 | BG18: 0
A19: Смак | B19: Хлеб пшеничный витаминный | C19: 40 | D19: 3.85 | E19: 0.48 | F19: 16.77 | G19: 94.4 | H19: 9.2 | I19: 0.15 | J19: 1.92 | K19: 0.84 | L19: 0 | M19: 0 | N19: 0 | O19: 0 | P19: 0 | Q19: 0 | R19: 0 | S19: 106.75 | T19: 55.75 | U19: 23.25 | V19: 49.5 | W19: 20 | X19: 92.75 | Y19: 74.25 | Z19: 72.75 | AA19: 116 | AB19: 31 | AC19: 77.5 | AD19: 382.25 | AE19: 67.5 | AF19: 131.5 | AG19: 72.75 | AH19: 45 | AI19: 32.5 | AJ19: 0 | AK19: 0 | AL19: 0 | AM19: 0 | AN19: 0 | AO19: 0 | AP19: 0.05 | AQ19: 0.04 | AR19: 0.03 | AS19: 0 | AT19: 0.01 | AU19: 0 | AV19: 0 | AW19: 0 | AX19: 0 | AY19: 0.03 | AZ19: 0 | BA19: 0 | BB19: 0.12 | BC19: 0.02 | BD19: 0 | BE19: 0 | BF19: 0 | BG19: 0
B20: Итого за прием | C20: 760 | D20: =SUM(D14:D19) -> 28.25 | E20: =SUM(E14:E19) -> 20.75 | F20: 90.85 | G20: 674.31 | H20: 132.98 | I20: 114.13 | J20: 306.62 | K20: 8.78 | L20: 3.2 | M20: =M14+M15+M16+M17+M18+M19 -> 24 | N20: 0.41 | O20: 220.08 | P20: 0 | Q20: 0 | R20: 0 | S20: 3835.36 | T20: 2287.95 | U20: 1251.17 | V20: 1898.74 | W20: 495.14 | X20: 2677.99 | Y20: 2458.54 | Z20: 5137.34 | AA20: 5390.77 | AB20: 1480.33 | AC20: 2731.47 | AD20: 11406.22 | AE20: 548.21 | AF20: 3036.12 | AG20: 2530.76 | AH20: 1693.7 | AI20: 780.17 | AJ20: 1.88 | AK20: 2.47 | AL20: 1.84 | AM20: 4.49 | AN20: 0.32 | AO20: 1.66 | AP20: 0.25 | AQ20: 11.51 | AR20: 0.14 | AS20: 6.41 | AT20: 1.76 | AU20: 1.58 | AV20: 0.06 | AW20: 2.31 | AX20: 0.93 | AY20: 60.24 | AZ20: 0.01 | BA20: 0.01 | BB20: 23.51 | BC20: 0.8 | BD20: 0.2 | BE20: 0 | BF20: 0 | BG20: 56

Sheet 3
A2: МЕНЮ
A3: День: третий | F3: сезон :осень-зима
A4: Возрастная категория: Учащиеся с 7-10 лет | F4: Рацион: завтрак, обед
A5: Возрастная категория: Учащиеся с 7 лет и старше
A7: Обед: льготники, ОВЗ, родительская плата
A9: № тех. карты | B9: Наименование блюда | C9: Выход порции, г | D9: Белки, г | F9: Жиры, г | H9: Углеводы, г | I9: ЭЦ, ккал | J9: НЖК | K9: ПНЖК | L9: МЖК | M9: Холестерин | N9: МД | O9: Крахмал | P9: ПВ | Q9: РПВ | R9: НПВ | S9: Органические кислоты | T9: Зола | U9: Na | V9: K | W9: Минеральные элементы (мг) | AA9: Витамины | AE9: Алкоголь, г | AF9: Валин | AG9: изолейцин | AH9: лейцин | AI9: лизин | AJ9: метионин | AK9: треонин | AL9: триптофан | AM9: фенилаланин | AN9: аланин | AO9: аргинин | AP9: аспарагиновая | AQ9: гистидин | AR9: глицин | AS9: глутаминовая | AT9: оксипролин | AU9: пролин | AV9: серин | AW9: тирозин | AX9: цистин | AY9: масляная | AZ9: капроновая | BA9: каприловая | BB9: каприновая | BC9: лауриновая | BD9: миристиновая | BE9: пентадекановая | BF9: пальмитиновая | BG9: маргариновая | BH9: стеариновая | BI9: арахиновая | BJ9: бегеновая | BK9: лигноцериновая | BL9: миристолеиновая | BM9: пальмитолеиновая | BN9: олеиновая | BO9: гадолеиновая | BP9: эруковая | BQ9: линолевая | BR9: линоленовая | BS9: арахидоновая | BT9: Аденин | BU9: Гуанин
W10: Ca | X10: Mg | Y10: P | Z10: Fe | AA10: Е,мг | AB10: А,мкг | AC10: В1,мг | AD10: С,мг
B11: Обед
A12: 148/Пермь, 2018 | B12: Свежие помидоры (порционно) | C12: 60 | D12: 0.7 | F12: 0.1 | H12: 1.9 | I12: 11 | J12: 0 | K12: 0 | L12: 0 | M12: 0 | N12: 1.46 | O12: 0.06 | P12: 0.61 | Q12: 0 | R12: 0 | S12: 0.06 | T12: 0.63 | U12: 131.31 | V12: 85.7 | W12: 17.8 | X12: 14.1 | Y12: 30.3 | Z12: 0.51 | AA12: 0.1 | AB12: 0 | AC12: 0.03 | AD12: 3.5 | AE12: 0 | AF12: 0 | AG12: 0 | AH12: 21.52 | AI12: 23.91 | AJ12: 4.18 | AK12: 17.33 | AL12: 4.78 | AM12: 14.94 | AN12: 16.15 | AO12: 13.75 | AP12: 82.51 | AQ12: 9.56 | AR12: 11.97 | AS12: 306.73 | AT12: 161.61 | AU12: 11.37 | AV12: 15.55 | AW12: 14.93 | AX12: 3 | AY12: 0 | AZ12: 0 | BA12: 0 | BB12: 0 | BC12: 0 | BD12: 0.01 | BE12: 0.11 | BF12: 0.02 | BG12: 0.06 | BH12: 0.01 | BI12: 0 | BJ12: 0.42 | BK12: 0.06 | BL12: 0 | BM12: 0 | BN12: 0.02 | BO12: 0 | BP12: 0.01 | BQ12: 0 | BR12: 0 | BS12: 0 | BT12: 0 | BU12: 0 | BV12: 56
A13: 130/Пермь, 201 | B13: Суп с макаронными изделиями и картофелем | C13: 250 | D13: 2.7 | F13: 2.6 | H13: 16.8 | I13: 100.75 | J13: 0 | K13: 0 | L13: 0 | M13: 0 | N13: 2.46 | O13: 13.39 | P13: 2.7 | Q13: 0 | R13: 0 | S13: 0.15 | T13: 2.18 | U13: 423.3 | V13: 695.7 | W13: 22.9 | X13: 24.3 | Y13: 66.5 | Z13: 1.09 | AA13: 1.4 | AB13: 1.7 | AC13: 0.1 | AD13: 7.8 | AE13: 0 | AF13: 0 | AG13: 0 | AH13: 293.45 | AI13: 282.61 | AJ13: 49.26 | AK13: 211.09 | AL13: 53.34 | AM13: 190.4 | AN13: 200.66 | AO13: 420.92 | AP13: 471.21 | AQ13: 90.68 | AR13: 172 | AS13: 718.34 | AT13: 54.24 | AU13: 240.29 | AV13: 229.36 | AW13: 133.42 | AX13: 63.58 | AY13: 0.11 | AZ13: 0.05 | BA13: 0.03 | BB13: 0.06 | BC13: 0.1 | BD13: 0.32 | BE13: 0.01 | BF13: 0.37 | BG13: 0 | BH13: 0.19 | BI13: 0.59 | BJ13: 0.09 | BK13: 0 | BL13: 0.06 | BM13: 0.08 | BN13: 1.26 | BO13: 0.02 | BP13: 0 | BQ13: 2.6 | BR13: 0.09 | BS13: 0.02 | BT13: 0 | BU13: 0 | BV13: 0
A14: 202/Пермь, 2018 | B14: Каша гречневая рассыпчатая | C14: 120 | D14: 10.53 | F14: 7.92 | H14: 46.62 | I14: 299.88 | J14: 2.44 | K14: 17.11 | L14: 0.08 | M14: 0 | N14: 0.79 | O14: 24.64 | P14: 1.35 | Q14: 0 | R14: 0 | S14: 0 | T14: 1.27 | U14: 387.85 | V14: 44.7 | W14: 19.98 | X14: 166.32 | Y14: 246 | Z14: 5.6 | AA14: 0.7 | AB14: 28.8 | AC14: 0.25 | AD14: 0 | AE14: 0 | AF14: 0 | AG14: 0 | AH14: 310.14 | AI14: 97.37 | AJ14: 59.1 | AK14: 120.35 | AL14: 40.02 | AM14: 192.3 | AN14: 127.4 | AO14: 153.2 | AP14: 132.57 | AQ14: 77.64 | AR14: 134.34 | AS14: 1177.84 | AT14: 1.6 | AU14: 371.21 | AV14: 192.91 | AW14: 97.15 | AX14: 76.46 | AY14: 0.13 | AZ14: 0.06 | BA14: 0.03 | BB14: 0.07 | BC14: 0.08 | BD14: 0.39 | BE14: 0.01 | BF14: 1.09 | BG14: 0.01 | BH14: 0.33 | BI14: 0 | BJ14: 0.19 | BK14: 0.01 | BL14: 0.07 | BM14: 0.11 | BN14: 0.86 | BO14: 0 | BP14: 0.02 | BQ14: 0.22 | BR14: 0.01 | BS14: 0 | BT14: 0 | BU14: 0 | BV14: 6.45
A15: 372/Пермь, 2018 | B15: Котлета из мяса кур | C15: 100 | D15: 15.43 | F15: 9.56 | H15: 8.86 | I15: 183 | W15: 40 | X15: 18.8 | Y15: 98 | Z15: 1.4 | AA15: 0.58 | AB15: 58.4 | AC15: 0.08 | AD15: 0.85 | AE15: 0 | AF15: 0 | AG15: 0 | AH15: 937.72 | AI15: 983.36 | AJ15: 281.6 | AK15: 524.69 | AL15: 134.04 | AM15: 509.48 | AN15: 685.69 | AO15: 686.87 | AP15: 1125.13 | AQ15: 445.21 | AR15: 586.27 | AS15: 2032.1 | AT15: 177.61 | AU15: 500.84 | AV15: 527.3 | AW15: 415.76 | AX15: 172.32 | AY15: 0.12 | AZ15: 0.06 | BA15: 0.03 | BB15: 0.07 | BC15: 0.08 | BD15: 0.37 | BE15: 0.01 | BF15: 0.93 | BG15: 0.01 | BH15: 0.29 | BI15: 0.01 | BJ15: 0.04 | BK15: 0 | BL15: 0.07 | BM15: 0.1 | BN15: 0.76 | BO15: 0 | BP15: 0 | BQ15: 0.07 | BR15: 0.07 | BS15: 0.01 | BT15: 0 | BU15: 0 | BV15: 0
A16: 419 | B16: Соус томатный | C16: 30 | D16: 0.33 | F16: 0.98 | H16: 1.37 | I16: 15.69 | W16: 2.59 | X16: 2.3 | Y16: 5.01 | Z16: 0.12 | AA16: 0.06 | AB16: 6 | AC16: 0 | AD16: 0.47
A17: 261/Пермь, 2001 | B17: Напиток из шиповника | C17: 200 | D17: 0.7 | F17: 0.3 | H17: 18.3 | I17: 78 | W17: 11.9 | X17: 3.2 | Y17: 3.2 | Z17: 0.61 | AA17: 0.8 | AB17: 0 | AC17: 0.01 | AD17: 80 | AE17: 0 | AF17: 0 | AG17: 0 | AH17: 152.69 | AI17: 50.63 | AJ17: 30.02 | AK17: 60.03 | AL17: 22.71 | AM17: 108.58 | AN17: 67.34 | AO17: 93.96 | AP17: 77.52 | AQ17: 40.72 | AR17: 72.04 | AS17: 602.39 | AT17: 70.47 | AU17: 196.27 | AV17: 85.35 | AW17: 56.64 | AX17: 44.89 | AY17: 0 | AZ17: 0 | BA17: 0 | BB17: 0 | BC17: 0 | BD17: 0 | BE17: 0.04 | BF17: 0.02 | BG17: 0.02 | BH17: 0 | BI17: 0 | BJ17: 0 | BK17: 0 | BL17: 0 | BM17: 0 | BN17: 0.02 | BO17: 0 | BP17: 0 | BQ17: 0.08 | BR17: 0 | BS17: 0 | BT17: 0 | BU17: 0 | BV17: 0
A18: Смак | B18: Хлеб "Дарницкий" | C18: 20 | D18: 2.64 | F18: 0.44 | H18: 16.4 | I18: 84 | W18: 17.5 | X18: 16 | Y18: 1.92 | Z18: 1.95 | AA18: 0 | AB18: 0 | AC18: 0.15 | AD18: 0 | AE18: 0 | AF18: 0 | AG18: 0 | AH18: 106.75 | AI18: 55.75 | AJ18: 23.25 | AK18: 49.5 | AL18: 20 | AM18: 92.75 | AN18: 74.25 | AO18: 72.75 | AP18: 116 | AQ18: 31 | AR18: 77.5 | AS18: 382.25 | AT18: 67.5 | AU18: 131.5 | AV18: 72.75 | AW18: 45 | AX18: 32.5 | AY18: 0 | AZ18: 0 | BA18: 0 | BB18: 0 | BC18: 0 | BD18: 0 | BE18: 0.05 | BF18: 0.04 | BG18: 0.03 | BH18: 0 | BI18: 0.01 | BJ18: 0 | BK18: 0 | BL18: 0 | BM18: 0 | BN18: 0.03 | BO18: 0 | BP18: 0 | BQ18: 0.12 | BR18: 0.02 | BS18: 0 | BT18: 0 | BU18: 0 | BV18: 0
A19: Смак | B19: Хлеб пшеничный витаминный | C19: 40 | D19: 3.85 | F19: 0.48 | H19: 16.77 | I19: 94.4 | W19: 9.2 | X19: 0.15 | Y19: 1.92 | Z19: 0.84 | AA19: 0 | AB19: 0 | AC19: 0 | AD19: 0 | AE19: 0 | AF19: 0 | AG19: 0 | AH19: 1855.98 | AI19: 1533.4 | AJ19: 472.35 | AK19: 1091.56 | AL19: 280.8 | AM19: 1141.3 | AN19: 1225.64 | AO19: 1610.1 | AP19: 2157.24 | AQ19: 717.51 | AR19: 1067.79 | AS19: 5431.17 | AT19: 541.49 | AU19: 1652.54 | AV19: 1265.07 | AW19: 787.85 | AX19: 424.48 | AY19: 0.37 | AZ19: 0.18 | BA19: 0.09 | BB19: 0.22 | BC19: 0.27 | BD19: 1.09 | BE19: 0.23 | BF19: 2.55 | BG19: 0.13 | BH19: 0.84 | BI19: 0.62 | BJ19: 0.74 | BK19: 0.07 | BL19: 0.2 | BM19: 0.32 | BN19: 3.03 | BO19: 0.02 | BP19: 0.03 | BQ19: 3.24 | BR19: 0.3 | BS19: 0.04 | BT19: 0 | BU19: 0 | BV19: 62.46
B20: Итого за прием | C20: 860 | D20: =D12+D13+D14+D15+D17+D18+D19 -> 36.55 | F20: =F12+F13+F14+F15+F17+F18+F19 -> 21.4 | H20: =SUM(H12:H19) -> 127.02 | I20: =SUM(I12:I19) -> 866.72 | W20: =SUM(W12:W19) -> 141.87 | X20: 245.17 | Y20: 452.85 | Z20: 12.12 | AA20: 3.64 | AB20: 94.9 | AC20: 0.62 | AD20: 92.62

Sheet 4
A2: МЕНЮ
A3: День: четвертый | E3: сезон : осень-зима
A5: Возрастная категория: Учащиеся с 7 лет и старше
A7: Обед: льготники, ОВЗ, родительская плата
A9: № тех. карты | B9: Наименование блюда | C9: Выход порции, г | D9: Белки, г | E9: Жиры, г | F9: Углеводы, г | G9: ЭЦ, ккал | H9: Минеральные элементы (мг) | L9: Витамины | P9: Алкоголь, г | Q9: Валин | R9: изолейцин | S9: лейцин | T9: лизин | U9: метионин | V9: треонин | W9: триптофан | X9: фенилаланин | Y9: аланин | Z9: аргинин | AA9: аспарагиновая | AB9: гистидин | AC9: глицин | AD9: глутаминовая | AE9: оксипролин | AF9: пролин | AG9: серин | AH9: тирозин | AI9: цистин | AJ9: масляная | AK9: капроновая | AL9: каприловая | AM9: каприновая | AN9: лауриновая | AO9: миристиновая | AP9: пентадекановая | AQ9: пальмитиновая | AR9: маргариновая | AS9: стеариновая | AT9: арахиновая | AU9: бегеновая | AV9: лигноцериновая | AW9: миристолеиновая | AX9: пальмитолеиновая | AY9: олеиновая | AZ9: гадолеиновая | BA9: эруковая | BB9: линолевая | BC9: линоленовая | BD9: арахидоновая | BE9: Аденин | BF9: Гуанин
H10: Ca | I10: Mg | J10: P | K10: Fe | L10: Е,мг | M10: А,мкг | N10: В1,мг | O10: С,мг
B11: Обед
P12: 0 | Q12: 0 | R12: 0 | S12: 0 | T12: 0 | U12: 0 | V12: 0 | W12: 0 | X12: 0 | Y12: 0 | Z12: 0 | AA12: 0 | AB12: 0 | AC12: 0 | AD12: 0 | AE12: 0 | AF12: 0 | AG12: 0 | AH12: 0 | AI12: 0 | AJ12: 0 | AK12: 0 | AL12: 0 | AM12: 0 | AN12: 0 | AO12: 0 | AP12: 0 | AQ12: 0 | AR12: 0 | AS12: 0 | AT12: 0 | AU12: 0 | AV12: 0 | AW12: 0 | AX12: 0 | AY12: 0 | AZ12: 0 | BA12: 0 | BB12: 0 | BC12: 0 | BD12: 0 | BE12: 0 | BF12: 0 | BG12: 0
A13: 157/Пермь, 2018 | B13: Кукуруза консервированная (промыш.) | C13: 60 | D13: 3 | E13: 3.8 | F13: 5.3 | G13: 67 | H13: 19.1 | I13: 18.9 | J13: 57.1 | K13: 0.64 | L13: 0.25 | M13: 19 | N13: 0.08 | O13: 2 | P13: 0 | Q13: 0 | R13: 0 | S13: 64.05 | T13: 64.77 | U13: 28.61 | V13: 108.44 | W13: 13.2 | X13: 56.43 | Y13: 88.09 | Z13: 195.54 | AA13: 219.13 | AB13: 33.12 | AC13: 41.14 | AD13: 335.45 | AE13: 1.6 | AF13: 188.15 | AG13: 142.94 | AH13: 47.05 | AI13: 35.98 | AJ13: 0.06 | AK13: 0.03 | AL13: 0.01 | AM13: 0.03 | AN13: 0.04 | AO13: 0.44 | AP13: 0 | AQ13: 10.65 | AR13: 0 | AS13: 12.17 | AT13: 0.81 | AU13: 0.09 | AV13: 0 | AW13: 0.03 | AX13: 0.48 | AY13: 15.89 | AZ13: 0.01 | BA13: 0 | BB13: 4.55 | BC13: 0.09 | BD13: 0.01 | BE13: 0 | BF13: 0 | BG13: 0
A14: 31/2 Екатеринбург 2015 | B14: Суп - пюре гороховый | C14: 250 | D14: 6.6 | E14: 2.2 | F14: 18.1 | G14: 118 | H14: 19.1 | I14: 8.6 | J14: 19 | K14: 9.6 | L14: 0 | M14: 0 | N14: 0.05 | O14: 11.9 | P14: 0 | Q14: 0 | R14: 0 | S14: 499.98 | T14: 530.36 | U14: 153.43 | V14: 273.47 | W14: 72.44 | X14: 271.03 | Y14: 365.5 | Z14: 355.47 | AA14: 598.97 | AB14: 235.34 | AC14: 309.46 | AD14: 1028.22 | AE14: 93.02 | AF14: 231.44 | AG14: 275.51 | AH14: 222.57 | AI14: 90.84 | AJ14: 0.01 | AK14: 0 | AL14: 0 | AM14: 0 | AN14: 0.02 | AO14: 0.01 | AP14: 0.01 | AQ14: 0.03 | AR14: 0 | AS14: 0.01 | AT14: 0 | AU14: 0 | AV14: 0 | AW14: 0 | AX14: 0.01 | AY14: 0.03 | AZ14: 0 | BA14: 0 | BB14: 0.02 | BC14: 0.02 | BD14: 0 | BE14: 0 | BF14: 0 | BG14: 0
A15: 377 | B15: Картофельное пюре | C15: 180 | D15: 3.78 | E15: 7.2 | F15: 10.98 | G15: 122.4 | H15: 36 | I15: 46 | J15: 198 | K15: 3.6 | L15: 0.1 | M15: 0 | N15: 0.01 | O15: 9 | P15: 0 | Q15: 0 | R15: 0 | S15: 567.56 | T15: 280.09 | U15: 196.08 | V15: 248.68 | W15: 85 | X15: 444.12 | Y15: 376.72 | Z15: 1093.28 | AA15: 859.1 | AB15: 206.26 | AC15: 473.76 | AD15: 1934.78 | AE15: 1.6 | AF15: 398.64 | AG15: 333.03 | AH15: 259.2 | AI15: 103.77 | AJ15: 0.48 | AK15: 0.61 | AL15: 0.45 | AM15: 1.11 | AN15: 0.08 | AO15: 0.5 | AP15: 0 | AQ15: 2.4 | AR15: 0 | AS15: 0.74 | AT15: 2.35 | AU15: 0.27 | AV15: 0 | AW15: 0 | AX15: 0.22 | AY15: 13.92 | AZ15: 0 | BA15: 0 | BB15: 5.2 | BC15: 0.11 | BD15: 0.04 | BE15: 0 | BF15: 0
A16: 347 | B16: Котлета "Школьная" в томатном соусе | C16: 90/30 | D16: 15.01 | E16: 11.98 | F16: 14.37 | G16: 226.7 | H16: 51.6 | I16: 23.3 | J16: 134 | K16: 2.12 | L16: 1.47 | M16: 29 | N16: 0.14 | O16: 0 | P16: 0.47 | Q16: 0 | R16: 0 | S16: 1301.2 | T16: 479.69 | U16: 477.01 | V16: 487.3 | W16: 135.47 | X16: 1006.24 | Y16: 747.36 | Z16: 2190.23 | AA16: 1961.69 | AB16: 486.21 | AC16: 1079.64 | AD16: 4246.64 | AE16: 1.5 | AF16: 954.85 | AG16: 773.83 | AH16: 556.77 | AI16: 223.72 | AJ16: 0.92 | AK16: 1.39 | AL16: 1.05 | AM16: 2.58 | AN16: 0.03 | AO16: 0.39 | AP16: 0.01 | AQ16: 3.23 | AR16: 0.01 | AS16: 1.01 | AT16: 0.81 | AU16: 0.64 | AV16: 0 | AW16: 1.3 | AX16: 0.28 | AY16: 31.84 | AZ16: 0 | BA16: 0 | BB16: 14.62 | BC16: 0.26 | BD16: 0.08 | BE16: 0 | BF16: 0 | BG16: 0.47
A17: 504/Пермь, 2018 | B17: Кисель с витаминами "Витошка" | C17: ="200" -> 200 | D17: 0 | E17: 0 | F17: 24 | G17: 95 | H17: 16.4 | I17: 4.3 | J17: 10.7 | K17: 0.9 | L17: 0.1 | M17: 0 | N17: 0 | O17: 0 | P17: 0.1 | Q17: 0 | R17: 0 | S17: 152.69 | T17: 50.63 | U17: 30.02 | V17: 60.03 | W17: 22.71 | X17: 108.58 | Y17: 67.34 | Z17: 93.96 | AA17: 77.52 | AB17: 40.72 | AC17: 72.04 | AD17: 602.39 | AE17: 70.47 | AF17: 196.27 | AG17: 85.35 | AH17: 56.64 | AI17: 44.89 | AJ17: 0 | AK17: 0 | AL17: 0 | AM17: 0 | AN17: 0 | AO17: 0 | AP17: 0.04 | AQ17: 0.02 | AR17: 0.02 | AS17: 0 | AT17: 0 | AU17: 0 | AV17: 0 | AW17: 0 | AX17: 0 | AY17: 0.02 | AZ17: 0 | BA17: 0 | BB17: 0.08 | BC17: 0 | BD17: 0 | BE17: 0 | BF17: 0 | BG17: 0
A18: Смак | B18: Хлеб пшеничный витаминный | C18: 40 | D18: 2.64 | E18: 0.44 | F18: 16.4 | G18: 84 | H18: 9.2 | I18: 0.15 | J18: 1.92 | K18: 0.84 | L18: 0 | M18: 0 | N18: 0 | O18: 0 | P18: 0 | Q18: 0 | R18: 0 | S18: 106.75 | T18: 55.75 | U18: 23.25 | V18: 49.5 | W18: 20 | X18: 92.75 | Y18: 74.25 | Z18: 72.75 | AA18: 116 | AB18: 31 | AC18: 77.5 | AD18: 382.25 | AE18: 67.5 | AF18: 131.5 | AG18: 72.75 | AH18: 45 | AI18: 32.5 | AJ18: 0 | AK18: 0 | AL18: 0 | AM18: 0 | AN18: 0 | AO18: 0 | AP18: 0.05 | AQ18: 0.04 | AR18: 0.03 | AS18: 0 | AT18: 0.01 | AU18: 0 | AV18: 0 | AW18: 0 | AX18: 0 | AY18: 0.03 | AZ18: 0 | BA18: 0 | BB18: 0.12 | BC18: 0.02 | BD18: 0 | BE18: 0 | BF18: 0 | BG18: 0
A19: Смак | B19: Хлеб "Дарницкий" | C19: 20 | D19: 1.98 | E19: 0.33 | F19: 12.3 | G19: 63 | H19: 17.5 | I19: 16 | J19: 1.92 | K19: 1.95 | L19: 0 | M19: 12.87 | N19: 0 | O19: 0 | P19: 0 | Q19: 0 | R19: 0 | S19: 2725.93 | T19: 1501.06 | U19: 933.36 | V19: 1335.98 | W19: 354.74 | X19: 2012 | Y19: 1773.4 | Z19: 4169.86 | AA19: 3984.71 | AB19: 1055.34 | AC19: 2067.22 | AD19: 8741.25 | AE19: 244.15 | AF19: 2301.92 | AG19: 1825.26 | AH19: 1212.18 | AI19: 563.42 | AJ19: 1.47 | AK19: 2.03 | AL19: 1.53 | AM19: 3.74 | AN19: 0.17 | AO19: 1.35 | AP19: 0.11 | AQ19: 16.46 | AR19: 0.06 | AS19: 13.94 | AT19: 3.99 | AU19: 0.99 | AV19: 0 | AW19: 1.33 | AX19: 1.02 | AY19: 61.79 | AZ19: 0.02 | BA19: 0 | BB19: 24.75 | BC19: 0.61 | BD19: 0.14 | BE19: 0 | BF19: 0 | BG19: 175.97
B20: Итого за прием | C20: 880 | D20: =SUM(D13:D19) -> 33.01 | E20: =SUM(E13:E19) -> 25.95 | F20: 101.45 | G20: 776.1 | H20: 168.9 | I20: 117.25 | J20: 422.64 | K20: 19.65 | L20: 1.92 | M20: 60.87 | N20: 0.28 | O20: 22.9

Sheet 05
A2: МЕНЮ
A4: День: пятый | E4: сезон : осень-зима
A5: Возрастная категория: Учащиеся с 7 лет и старше
A7: Обед: льготники, ОВЗ, родительская плата
A9: № | B9: Наименование блюда | C9: Выход порции, г | D9: Белки, г | E9: Жиры, г | F9: Углеводы, г | G9: ЭЦ, ккал | H9: Минеральные элементы (мг) | L9: Витамины
H10: Ca | I10: Mg | J10: P | K10: Fe | L10: Е,мг | M10: А,мкг | N10: В1,мг | O10: С,мг
B11: Обед
A12: 148/Пермь, 2018 | B12: Свежие помидоры порционно | C12: 60 | D12: 1.1 | E12: 0.33 | F12: 3.7 | G12: 20 | H12: 25.5 | I12: 13.8 | J12: 40.1 | K12: 0.51 | L12: 1.3 | M12: 0 | N12: 0.03 | O12: 25
A13: 101 | B13: Рассольник домашний со сметаной | C13: 250/5 | D13: 1.95 | E13: 5.08 | F13: 13.45 | G13: 107.25 | H13: 28.7 | I13: 38 | J13: 146.3 | K13: 2.27 | L13: 1.45 | M13: 7.1 | N13: 0.14 | O13: 0.09 | P13: 10.5
A14: 385 | B14: Рис отварной (гарнир) | C14: 180 | D14: 4.52 | E14: 6.52 | F14: 1.49 | G14: 14.76 | H14: 3.3 | I14: 21.9 | J14: 70.6 | K14: 0.32 | L14: 0.32 | M14: 30.8 | N14: 0.03 | O14: 0.02 | P14: 0
A15: 373 | B15: Котлета "Нежная" | C15: 90 | D15: 18.6 | E15: 12.4 | F15: 6.3 | G15: 212 | H15: 215 | I15: 37 | J15: 230 | K15: 1.55 | L15: 0.9 | M15: 85 | N15: 0.14 | O15: 0.7 | P15: 0.5
A16: 486 | B16: Компот из свежих фруктов | C16: ="200" -> 200 | D16: 0.16 | E16: 0 | F16: 14.99 | G16: 60.64 | H16: 20.1 | I16: 14.4 | J16: 19.2 | K16: 0.69 | L16: 0.4 | M16: 0 | N16: 0.01 | O16: 0 | P16: 0.2
A17: ооохлебокомбинат | B17: Хлеб пшеничный витаминный | C17: 40 | D17: 2.64 | E17: 0.44 | F17: 16.4 | G17: 70.8 | H17: 9.2 | I17: 0.15 | J17: 1.92 | K17: 0.84 | L17: 0 | M17: 0 | N17: 0 | O17: 0.06 | P17: 0
A18: ооохлебокомбинат | B18: Хлеб "Дарницкий" | C18: 30 | D18: 3.85 | E18: 0.48 | F18: 16.77 | G18: 94.4 | H18: 17.5 | I18: 16 | J18: 1.92 | K18: 1.95 | L18: 0 | M18: 0 | N18: 0.15 | O18: 0.06 | P18: 0
B19: Итого за прием | C19: 855 | D19: =SUM(D12:D18) -> 32.82 | E19: 25.25 | F19: 73.1 | G19: 579.85 | H19: 319.3 | I19: 141.25 | J19: 510.04 | K19: 8.13 | L19: 4.37 | M19: 122.9 | N19: 0.5 | O19: 25.93

Sheet 06
A2: МЕНЮ
A3: День: шестой
A4: Возрастная категория: Учащиеся с 7 лет и старше | E4: сезон : осень-зима
A6: Обед: льготники, ОВЗ, родительская плата
A8: № | B8: Наименование блюда | C8: Выход порции, г | D8: Белки, г | E8: Жиры, г | F8: Углеводы, г | G8: ЭЦ, ккал | H8: Минеральные элементы (мг) | L8: Витамины
H9: Ca | I9: Mg | J9: P | K9: Fe | L9: Е,мг | M9: А,мкг | N9: В1,мг | O9: В2,мг | P9: С,мг
B10: Обед
A12: 157/пермь, 2018 | B12: Зеленый горошек консер.(пром.) | C12: 30 | D12: 3.13 | E12: 3.7 | F12: 5.3 | G12: 67 | H12: 19.1 | I12: 18.9 | J12: 57.1 | K12: 0.7 | L12: 0.25 | M12: 19 | N12: 0.08 | O12: 0.05 | P12: 2
A13: 130/Пермь, 2018 | B13: Суп с макаронными изделиями и картофелем | C13: 250 | D13: 2.6 | E13: 2.53 | F13: 16.45 | G13: 99 | H13: 21.5 | I13: 20.15 | J13: 56.53 | K13: 0.97 | L13: 1.4 | M13: 2.13 | N13: 0.09 | O13: 5.45 | P13: 7.8
A14: 377/Пермь, 2018 | B14: Картофельное пюре | C14: 100 | D14: 2.1 | E14: 4 | F14: 6.1 | G14: 68 | H14: 25.5 | I14: 16.4 | J14: 51.5 | K14: 51.5 | L14: 0.7 | M14: 28.8 | N14: 0.25 | O14: 0 | P14: 14.2
A15: 380/Пермь, 2018 | B15: Капуста тушёная | C15: 100 | D15: 2.2 | E15: 3.4 | F15: 8.1 | G15: 72 | H15: 60.1 | I15: 22.9 | J15: 44.3 | K15: 0.88 | L15: 0.2 | M15: 15 | N15: 0.16 | O15: 2 | P15: 0
A16: 350/Пермь, 2018 | B16: Рыба ,тушонная в томате с овощами | C16: 120 | D16: 12 | E16: 3.7 | F16: 7.4 | G16: 110.8 | H16: 12 | I16: 15 | J16: 108 | K16: 1.78 | L16: 1.4 | M16: 0 | N16: 0.13 | O16: 0 | P16: 0
A17: 495 | B17: Компот из сухофруктов с аскорбиновой кислотой | C17: ="200" -> 200 | D17: 0.6 | E17: 0.1 | F17: 20.1 | G17: 84 | H17: 20.1 | I17: 14.4 | J17: 19.2 | K17: 0.69 | L17: 0.4 | M17: 0 | N17: 0.01 | O17: 0 | P17: 0.2
A18: Смак | B18: Хлеб пшеничный витаминный | C18: 40 | D18: 2.64 | E18: 0.44 | F18: 16.4 | G18: 70.8 | H18: 9.2 | I18: 0.15 | J18: 1.92 | K18: 0.84 | L18: 0 | M18: 0 | N18: 0 | O18: 0.06 | P18: 0
A19: Смак | B19: Хлеб "Дарницкий" | C19: 20 | D19: 3.85 | E19: 0.48 | F19: 16.77 | G19: 94.4 | H19: 17.5 | I19: 16 | J19: 1.92 | K19: 1.95 | L19: 0 | M19: 0 | N19: 0.15 | O19: 0.06 | P19: 0
B20: Итого за прием | C20: 900 | D20: =SUM(D12:D19) -> 29.12 | E20: 18.35 | F20: 96.62 | G20: 666 | H20: 185 | I20: 123.9 | J20: =SUM(J11:J19) -> 340.47 | K20: 59.31 | L20: 4.35 | M20: 64.93 | N20: 0.87 | O20: 7.62 | P20: 24.2

Sheet 07
A2: МЕНЮ
A3: День: седьмой | C3: сезон : осень-зима
A4: Возрастная категория: Учащиеся с 7 лет и старше
A6: Обед: льготники, ОВЗ, родительская плата
A8: № | B8: Наименование блюда | C8: Выход порции, г | D8: Белки, г | E8: Жиры, г | F8: Углеводы, г | G8: ЭЦ, ккал | H8: Минеральные элементы (мг) | L8: Витамины | P8: Алкоголь, г | Q8: Валин | R8: изолейцин | S8: лейцин | T8: лизин | U8: метионин | V8: треонин | W8: триптофан | X8: фенилаланин | Y8: аланин | Z8: аргинин | AA8: аспарагиновая | AB8: гистидин | AC8: глицин | AD8: глутаминовая | AE8: оксипролин | AF8: пролин | AG8: серин | AH8: тирозин | AI8: цистин | AJ8: масляная | AK8: капроновая | AL8: каприловая | AM8: каприновая | AN8: лауриновая | AO8: миристиновая | AP8: пентадекановая | AQ8: пальмитиновая | AR8: маргариновая | AS8: стеариновая | AT8: арахиновая | AU8: бегеновая | AV8: лигноцериновая | AW8: миристолеиновая | AX8: пальмитолеиновая | AY8: олеиновая | AZ8: гадолеиновая | BA8: эруковая | BB8: линолевая | BC8: линоленовая | BD8: арахидоновая | BE8: Аденин | BF8: Гуанин
H9: Ca | I9: Mg | J9: P | K9: Fe | L9: Е,мг | M9: А,мкг | N9: В1,мг | O9: С,мг
B10: Обед
A11: 148 | B11: кукуруза | C11: 30 | D11: 1.63 | E11: 2.06 | F11: 2.88 | G11: 36.37 | H11: 25.5 | I11: 13.8 | J11: 40.1 | K11: 0.51 | L11: 1.3 | M11: 0 | N11: 0.03 | O11: 25 | P11: 25 | Q11: 0 | R11: 0 | S11: 0 | T11: 0 | U11: 0 | V11: 0 | W11: 0 | X11: 0 | Y11: 0 | Z11: 0 | AA11: 0 | AB11: 0 | AC11: 0 | AD11: 0 | AE11: 0 | AF11: 0 | AG11: 0 | AH11: 0 | AI11: 0 | AJ11: 0 | AK11: 0 | AL11: 0 | AM11: 0 | AN11: 0 | AO11: 0 | AP11: 0 | AQ11: 0 | AR11: 0 | AS11: 0 | AT11: 0 | AU11: 0 | AV11: 0 | AW11: 0 | AX11: 0 | AY11: 0 | AZ11: 0 | BA11: 0 | BB11: 0 | BC11: 0 | BD11: 0 | BE11: 0 | BF11: 0 | BG11: 0
A12: 128 | B12: Суп - лапша домашняя | C12: 250 | D12: 10 | E12: 15.4 | F12: 44.5 | G12: 357 | H12: 80 | I12: 34 | J12: 142 | K12: 2.07 | L12: 1.6 | M12: 130 | N12: 0.13 | O12: 0 | P12: 2 | Q12: 0 | R12: 0 | S12: 504.18 | T12: 231.42 | U12: 187.22 | V12: 266.38 | W12: 65.82 | X12: 396.32 | Y12: 338.98 | Z12: 993.17 | AA12: 844.01 | AB12: 193.76 | AC12: 414.49 | AD12: 1751.27 | AE12: 1.6 | AF12: 478.64 | AG12: 381.03 | AH12: 230.34 | AI12: 106.31 | AJ12: 0.44 | AK12: 0.56 | AL12: 0.42 | AM12: 1.02 | AN12: 0.1 | AO12: 0.42 | AP12: 0.01 | AQ12: 1.54 | AR12: 0 | AS12: 0.55 | AT12: 1.23 | AU12: 0.3 | AV12: 0 | AW12: 0.54 | AX12: 0.18 | AY12: 13.06 | AZ12: 0.02 | BA12: 0 | BB12: 7.1 | BC12: 0.17 | BD12: 0.05 | BE12: 0 | BF12: 0 | BG12: 0
A13: 375 | B13: Плов из мяса кур | C13: 200 | D13: 25 | E13: 21.25 | F13: 31.25 | G13: 416.25 | H13: 20.6 | I13: 13.3 | J13: 68 | K13: 1.6 | L13: 1.25 | M13: 51.5 | N13: 0.075 | O13: 0.07 | P13: 0 | Q13: 0 | R13: 0 | S13: 969.19 | T13: 1024.91 | U13: 281.56 | V13: 545.48 | W13: 161.57 | X13: 548.28 | Y13: 730.03 | Z13: 878.4 | AA13: 1185.37 | AB13: 438.38 | AC13: 612.5 | AD13: 2181.21 | AE13: 162.09 | AF13: 469.07 | AG13: 538.6 | AH13: 440.59 | AI13: 181.17 | AJ13: 0.15 | AK13: 0.07 | AL13: 0.04 | AM13: 0.08 | AN13: 0.13 | AO13: 0.47 | AP13: 0.02 | AQ13: 0.97 | AR13: 0.01 | AS13: 0.32 | AT13: 1.83 | AU13: 0.02 | AV13: 0 | AW13: 0.08 | AX13: 0.13 | AY13: 1.23 | AZ13: 0.01 | BA13: 0 | BB13: 1.24 | BC13: 0.06 | BD13: 0.02 | BE13: 0 | BF13: 0 | BG13: 0
A14: 257 | B14: Напиток клюквенный | C14: 200 | D14: 0 | E14: 0 | F14: 21 | G14: 85 | H14: 65 | I14: 9 | J14: 19 | K14: 2 | L14: 0 | M14: 0 | N14: 0 | O14: 1 | P14: 1.1
A15: Смак | B15: Хлеб пшеничный витаминный | C15: 40 | D15: 2.64 | E15: 0.44 | F15: 16.4 | G15: 70.8 | H15: 9.2 | I15: 0.15 | J15: 1.92 | K15: 0.84 | L15: 0 | M15: 0 | N15: 0 | O15: 0.06 | P15: 0 | Q15: 0 | R15: 0 | S15: 35.29 | T15: 41.01 | U15: 25 | V15: 109.52 | W15: 6.26 | X15: 33.72 | Y15: 55.73 | Z15: 169.96 | AA15: 159.16 | AB15: 23.3 | AC15: 14.92 | AD15: 216.03 | AE15: 8.46 | AF15: 202.05 | AG15: 143.02 | AH15: 25.98 | AI15: 31.99 | AJ15: 0.01 | AK15: 0.01 | AL15: 0.16 | AM15: 0.13 | AN15: 0.02 | AO15: 0.02 | AP15: 0 | AQ15: 0.62 | AR15: 0 | AS15: 0.28 | AT15: 0.06 | AU15: 0 | AV15: 0 | AW15: 0 | AX15: 0.04 | AY15: 1.62 | AZ15: 0 | BA15: 0 | BB15: 1.25 | BC15: 0.11 | BD15: 0.01 | BE15: 0 | BF15: 0 | BG15: 0
A16: Смак | B16: Хлеб "Дарницкий" | C16: 20 | D16: 3.85 | E16: 0.48 | F16: 16.77 | G16: 94.4 | H16: 17.5 | I16: 16 | J16: 1.92 | K16: 1.95 | L16: 0 | M16: 0 | N16: 0.15 | O16: 0.06 | P16: 0 | Q16: 0 | R16: 0 | S16: 128.1 | T16: 66.9 | U16: 27.9 | V16: 59.4 | W16: 24 | X16: 111.3 | Y16: 89.1 | Z16: 87.3 | AA16: 139.2 | AB16: 37.2 | AC16: 93 | AD16: 458.7 | AE16: 81 | AF16: 157.8 | AG16: 87.3 | AH16: 54 | AI16: 39 | AJ16: 0 | AK16: 0 | AL16: 0 | AM16: 0 | AN16: 0 | AO16: 0 | AP16: 0.06 | AQ16: 0.04 | AR16: 0.03 | AS16: 0 | AT16: 0.01 | AU16: 0 | AV16: 0 | AW16: 0 | AX16: 0 | AY16: 0.03 | AZ16: 0 | BA16: 0 | BB16: 0.14 | BC16: 0.02 | BD16: 0 | BE16: 0 | BF16: 0 | BG16: 0
B17: Итого за прием | C17: 890 | D17: =SUM(D11:D16) -> 43.12 | E17: 39.63 | F17: 132.8 | G17: 1059.82 | H17: 217.8 | I17: 86.25 | J17: 272.94 | K17: 8.97 | L17: 4.15 | M17: 181.5 | N17: 0.385 | O17: 26.19 | P17: 0 | Q17: 0 | R17: 0 | S17: 1774.42 | T17: 1411.26 | U17: 549.82 | V17: 1041.67 | W17: 278.28 | X17: 1187.19 | Y17: 1277.24 | Z17: 2223.07 | AA17: 2406.9 | AB17: 730.35 | AC17: 1199.36 | AD17: 5154.05 | AE17: 312.14 | AF17: 1495.81 | AG17: 1236.81 | AH17: 802.44 | AI17: 400.15 | AJ17: 0.63 | AK17: 0.66 | AL17: 0.62 | AM17: 1.25 | AN17: 0.27 | AO17: 1 | AP17: 0.12 | AQ17: 3.43 | AR17: 0.06 | AS17: 1.23 | AT17: 3.13 | AU17: 0.34 | AV17: 0 | AW17: 0.63 | AX17: 0.38 | AY17: 16.15 | AZ17: 0.03 | BA17: 0 | BB17: 9.82 | BC17: 0.38 | BD17: 0.07 | BE17: 0 | BF17: 0 | BG17: 0

Sheet 08
A2: МЕНЮ
A3: День:восьмой | C3: сезон : осень-зима
A5: Возрастная категория с 7 лет и старше
A7: Обед: льготники, ОВЗ, родительская плата
A10: № | B10: Наименование блюда | C10: Выход порции, г | D10: Белки, г | E10: Жиры, г | F10: Углеводы, г | G10: ЭЦ, ккал | H10: Минеральные элементы (мг) | L10: Витамины | P10: Алкоголь, г | Q10: Валин | R10: изолейцин | S10: лейцин | T10: лизин | U10: метионин | V10: треонин | W10: триптофан | X10: фенилаланин | Y10: аланин | Z10: аргинин | AA10: аспарагиновая | AB10: гистидин | AC10: глицин | AD10: глутаминовая | AE10: оксипролин | AF10: пролин | AG10: серин | AH10: тирозин | AI10: цистин | AJ10: масляная | AK10: капроновая | AL10: каприловая | AM10: каприновая | AN10: лауриновая | AO10: миристиновая | AP10: пентадекановая | AQ10: пальмитиновая | AR10: маргариновая | AS10: стеариновая | AT10: арахиновая | AU10: бегеновая | AV10: лигноцериновая | AW10: миристолеиновая | AX10: пальмитолеиновая | AY10: олеиновая | AZ10: гадолеиновая | BA10: эруковая | BB10: линолевая | BC10: линоленовая | BD10: арахидоновая | BE10: Аденин | BF10: Гуанин
H11: Ca | I11: Mg | J11: P | K11: Fe | L11: Е,мг | M11: А,мкг | N11: В1,мг | O11: С,мг
B12: Обед
A13: 148 | B13: Свежие огурцы порционно | C13: 600 | D13: 0.17 | E13: 0.02 | F13: 0.46 | G13: 2.64 | H13: 18 | I13: 14 | J13: 30.2 | K13: 0.51 | L13: 0.1 | M13: 0 | N13: 0.03 | O13: 3.5 | P13: 0 | Q13: 0 | R13: 0 | S13: 21.52 | T13: 23.91 | U13: 4.18 | V13: 17.33 | W13: 4.78 | X13: 14.94 | Y13: 16.15 | Z13: 13.75 | AA13: 82.51 | AB13: 9.56 | AC13: 11.97 | AD13: 306.73 | AE13: 161.61 | AF13: 11.37 | AG13: 15.55 | AH13: 14.93 | AI13: 3 | AJ13: 0 | AK13: 0 | AL13: 0 | AM13: 0 | AN13: 0 | AO13: 0.01 | AP13: 0.11 | AQ13: 0.02 | AR13: 0.06 | AS13: 0.01 | AT13: 0 | AU13: 0.42 | AV13: 0.06 | AW13: 0 | AX13: 0 | AY13: 0.02 | AZ13: 0 | BA13: 0.01 | BB13: 0 | BC13: 0 | BD13: 0 | BE13: 0 | BF13: 0 | BG13: 56
A14: 95 | B14: Борщ с капустой и картофелем со сметаной | C14: 250/5 | D14: 1.8 | E14: 4.43 | F14: 7.15 | G14: 75.63 | H14: 126.9 | I14: 37.2 | J14: 125 | K14: 1.57 | L14: 2.8 | M14: 160 | N14: 0.05 | O14: 9.13 | P14: 0 | Q14: 0 | R14: 0 | S14: 121.55 | T14: 65.88 | U14: 36.33 | V14: 129.54 | W14: 19.93 | X14: 85.79 | Y14: 94.34 | Z14: 221.4 | AA14: 180.34 | AB14: 42.67 | AC14: 57.66 | AD14: 546.42 | AE14: 1.6 | AF14: 282.22 | AG14: 180.44 | AH14: 52.42 | AI14: 50.58 | AJ14: 0.03 | AK14: 0.02 | AL14: 0.01 | AM14: 0.02 | AN14: 0.03 | AO14: 0.11 | AP14: 0.01 | AQ14: 0.2 | AR14: 0 | AS14: 0.08 | AT14: 0.33 | AU14: 0.06 | AV14: 0 | AW14: 0.02 | AX14: 0.03 | AY14: 0.39 | AZ14: 0.01 | BA14: 0 | BB14: 0.7 | BC14: 0.09 | BD14: 0.01 | BE14: 0 | BF14: 0 | BG14: 0
A15: 334 | B15: Запеканка картофельная, фаршированная отварным мясом ( кура, или гов.) | C15: 180 | D15: 21 | E15: 17 | F15: 17 | G15: 305 | H15: 30 | I15: 44 | J15: 222 | K15: 3.44 | L15: 1.12 | M15: 26.08 | N15: 0.25 | O15: 11 | P15: 0 | Q15: 0 | R15: 0 | S15: 259.79 | T15: 117.98 | U15: 72.32 | V15: 139.49 | W15: 42.69 | X15: 159.45 | Y15: 179.7 | Z15: 270.47 | AA15: 287.38 | AB15: 77.21 | AC15: 133.54 | AD15: 574.19 | AE15: 0 | AF15: 215.25 | AG15: 191.35 | AH15: 124.91 | AI15: 67.55 | AJ15: 0.17 | AK15: 0.11 | AL15: 0.06 | AM15: 0.12 | AN15: 0.19 | AO15: 0.16 | AP15: 0.04 | AQ15: 0.22 | AR15: 0.02 | AS15: 0.1 | AT15: 0.09 | AU15: 0.09 | AV15: 0 | AW15: 0.03 | AX15: 0.12 | AY15: 0.9 | AZ15: 0.01 | BA15: 0 | BB15: 1.42 | BC15: 0.05 | BD15: 0.1 | BE15: 0 | BF15: 0 | BG15: 0
A16: 251 | B16: Компот из свежих фруктов | C16: 200 | D16: 0.48 | E16: 0.25 | F16: 26.81 | G16: 110.96 | H16: 7 | I16: 4 | J16: 7 | K16: 1.4 | L16: 0.1 | M16: 0 | N16: 0.01 | O16: 0 | P16: 2
A17: Смак | B17: Хлеб пшеничный витаминный | C17: 40 | D17: 2.64 | E17: 0.44 | F17: 16.4 | G17: 70.8 | H17: 9.2 | I17: 0.15 | J17: 1.92 | K17: 0.84 | L17: 0 | M17: 0 | N17: 0 | O17: 0.06 | P17: 0 | Q17: 0 | R17: 0 | S17: 127.24 | T17: 42.2 | U17: 25.01 | V17: 50.03 | W17: 18.92 | X17: 90.48 | Y17: 56.12 | Z17: 78.3 | AA17: 64.6 | AB17: 33.93 | AC17: 60.03 | AD17: 501.99 | AE17: 58.73 | AF17: 163.56 | AG17: 71.12 | AH17: 47.2 | AI17: 37.41 | AJ17: 0 | AK17: 0 | AL17: 0 | AM17: 0 | AN17: 0 | AO17: 0 | AP17: 0.03 | AQ17: 0.02 | AR17: 0.02 | AS17: 0 | AT17: 0 | AU17: 0 | AV17: 0 | AW17: 0 | AX17: 0 | AY17: 0.02 | AZ17: 0 | BA17: 0 | BB17: 0.07 | BC17: 0 | BD17: 0 | BE17: 0 | BF17: 0 | BG17: 0
A18: Смак | B18: Хлеб "Дарницкий" | C18: 20 | D18: 3.85 | E18: 0.48 | F18: 16.77 | G18: 94.4 | H18: 17.5 | I18: 16 | J18: 1.92 | K18: 1.95 | L18: 0 | M18: 0 | N18: 0.15 | O18: 0.06 | P18: 0 | Q18: 0 | R18: 0 | S18: 128.1 | T18: 66.9 | U18: 27.9 | V18: 59.4 | W18: 24 | X18: 111.3 | Y18: 89.1 | Z18: 87.3 | AA18: 139.2 | AB18: 37.2 | AC18: 93 | AD18: 458.7 | AE18: 81 | AF18: 157.8 | AG18: 87.3 | AH18: 54 | AI18: 39 | AJ18: 0 | AK18: 0 | AL18: 0 | AM18: 0 | AN18: 0 | AO18: 0 | AP18: 0.06 | AQ18: 0.04 | AR18: 0.03 | AS18: 0 | AT18: 0.01 | AU18: 0 | AV18: 0 | AW18: 0 | AX18: 0 | AY18: 0.03 | AZ18: 0 | BA18: 0 | BB18: 0.14 | BC18: 0.02 | BD18: 0 | BE18: 0 | BF18: 0 | BG18: 0
B19: Итого за прием | C19: 840 | D19: =SUM(D13:D18) -> 29.94 | E19: 22.62 | F19: 84.59 | G19: 659.43 | H19: 208.6 | I19: 115.35 | J19: 388.04 | K19: 9.71 | L19: 4.12 | M19: 186.08 | N19: 0.49 | O19: 23.75 | P19: 0 | Q19: 0 | R19: 0 | S19: 710.75 | T19: 376.81 | U19: 205.63 | V19: 578.66 | W19: 119.4 | X19: 513.27 | Y19: 527.57 | Z19: 958.43 | AA19: 1016.01 | AB19: 238.36 | AC19: 378.04 | AD19: 2737.67 | AE19: 313.39 | AF19: 1178.98 | AG19: 791.36 | AH19: 333.6 | AI19: 251.62 | AJ19: 0.25 | AK19: 0.16 | AL19: 0.08 | AM19: 0.18 | AN19: 0.26 | AO19: 0.34 | AP19: 0.26 | AQ19: 0.71 | AR19: 0.14 | AS19: 0.24 | AT19: 0.46 | AU19: 0.59 | AV19: 0.06 | AW19: 0.05 | AX19: 0.22 | AY19: 1.61 | AZ19: 0.02 | BA19: 0.01 | BB19: 2.54 | BC19: 0.36 | BD19: 0.15 | BE19: 0 | BF19: 0 | BG19: 56

Sheet 9
A2: МЕНЮ
A3: День: девятый
A5: Возрастная категория: учащиеся с 7 лет и старше
E6: сезон : осень-зима
A7: Обед: льготники, ОВЗ, родительская плата
A10: № | B10: Наименование блюда | C10: Выход порции, г | D10: Белки, г | E10: Жиры, г | F10: Углеводы, г | G10: ЭЦ, ккал | H10: Минеральные элементы (мг) | L10: Витамины | Q10: Алкоголь, г | R10: Валин | S10: изолейцин | T10: лейцин | U10: лизин | V10: метионин | W10: треонин | X10: триптофан | Y10: фенилаланин | Z10: аланин | AA10: аргинин | AB10: аспарагиновая | AC10: гистидин | AD10: глицин | AE10: глутаминовая | AF10: оксипролин | AG10: пролин | AH10: серин | AI10: тирозин | AJ10: цистин | AK10: масляная | AL10: капроновая | AM10: каприловая | AN10: каприновая | AO10: лауриновая | AP10: миристиновая | AQ10: пентадекановая | AR10: пальмитиновая | AS10: маргариновая | AT10: стеариновая | AU10: арахиновая | AV10: бегеновая | AW10: лигноцериновая | AX10: миристолеиновая | AY10: пальмитолеиновая | AZ10: олеиновая | BA10: гадолеиновая | BB10: эруковая | BC10: линолевая | BD10: линоленовая | BE10: арахидоновая | BF10: Аденин | BG10: Гуанин
H11: Ca | I11: Mg | J11: P | K11: Fe | L11: Е,мг | M11: А,мкг | N11: В1,мг | O11: В2,мг | P11: С,мг
B12: Обед
A13: 148 | B13: Свежие помидоры порционно | C13: 60 | D13: 1.63 | E13: 2.06 | F13: 2.88 | G13: 36.37 | H13: 25.5 | I13: 13.8 | J13: 40.1 | K13: 0.51 | L13: 1.3 | M13: 0 | N13: 0.03 | O13: 25 | P13: 25 | Q13: 0 | R13: 0 | S13: 0 | T13: 0 | U13: 0 | V13: 0 | W13: 0 | X13: 0 | Y13: 0 | Z13: 0 | AA13: 0 | AB13: 0 | AC13: 0 | AD13: 0 | AE13: 0 | AF13: 0 | AG13: 0 | AH13: 0 | AI13: 0 | AJ13: 0 | AK13: 0 | AL13: 0 | AM13: 0 | AN13: 0 | AO13: 0 | AP13: 0 | AQ13: 0 | AR13: 0 | AS13: 0 | AT13: 0 | AU13: 0 | AV13: 0 | AW13: 0 | AX13: 0 | AY13: 0 | AZ13: 0 | BA13: 0 | BB13: 0 | BC13: 0 | BD13: 0 | BE13: 0 | BF13: 0 | BG13: 0 | BH13: 0
A14: 100 | B14: Рассольник Ленинградский со сметаной | C14: 250/5 | D14: 4.4 | E14: 25.1 | F14: 16.6 | G14: 126.8 | H14: 100.8 | I14: 32.2 | J14: 119.6 | K14: 1 | L14: 2.75 | M14: 160 | N14: 0.13 | O14: 0 | P14: 7.25 | Q14: 0 | R14: 0 | S14: 0 | T14: 67.5 | U14: 70.31 | V14: 24.64 | W14: 106.87 | X14: 16.86 | Y14: 53.69 | Z14: 82.37 | AA14: 212.71 | AB14: 198.02 | AC14: 30.55 | AD14: 43.48 | AE14: 298.67 | AF14: 24.63 | AG14: 175.83 | AH14: 133.59 | AI14: 42.86 | AJ14: 32.37 | AK14: 0.13 | AL14: 0.06 | AM14: 0.03 | AN14: 0.07 | AO14: 0.12 | AP14: 0.48 | AQ14: 0.01 | AR14: 3.75 | AS14: 0 | AT14: 4.1 | AU14: 0.66 | AV14: 0.08 | AW14: 0 | AX14: 0.07 | AY14: 0.23 | AZ14: 6.22 | BA14: 0.02 | BB14: 0 | BC14: 4.15 | BD14: 0.09 | BE14: 0.02 | BF14: 0 | BG14: 0 | BH14: 0
A15: 256 | B15: Макаронные изделия отварные | C15: 180 | D15: 6.66 | E15: 0.54 | F15: 35.5 | G15: 228.4 | H15: 16.5 | I15: 10.7 | J15: 54.5 | K15: 1.29 | L15: 1 | M15: 41.2 | N15: 0.06 | O15: 0.06 | P15: 0
A16: 310 | B16: Шницель рыбный натуральный | C16: 90 | D16: 14.7 | E16: 2.7 | F16: 10.7 | G16: 125.3 | H16: 66.7 | I16: 36 | J16: 212 | K16: 1 | L16: 1 | M16: 20 | N16: 0 | O16: 0 | P16: 3 | Q16: 0 | R16: 0 | S16: 0 | T16: 310.14 | U16: 97.37 | V16: 59.1 | W16: 120.35 | X16: 40.02 | Y16: 192.3 | Z16: 127.4 | AA16: 153.2 | AB16: 132.57 | AC16: 77.64 | AD16: 134.34 | AE16: 1177.84 | AF16: 1.6 | AG16: 371.21 | AH16: 192.91 | AI16: 97.15 | AJ16: 76.46 | AK16: 0.13 | AL16: 0.06 | AM16: 0.03 | AN16: 0.07 | AO16: 0.08 | AP16: 0.39 | AQ16: 0.01 | AR16: 1.09 | AS16: 0.01 | AT16: 0.33 | AU16: 0 | AV16: 0.19 | AW16: 0.01 | AX16: 0.07 | AY16: 0.11 | AZ16: 0.86 | BA16: 0 | BB16: 0.02 | BC16: 0.22 | BD16: 0.01 | BE16: 0 | BF16: 0 | BG16: 0 | BH16: 6.45
A17: 501 | B17: Сок в ассортименте | C17: 200 | D17: 0.5 | E17: 0.1 | F17: 10.1 | G17: 43 | H17: 7 | I17: 4 | J17: 7 | K17: 1.4 | L17: 0.1 | M17: 0 | N17: 0.01 | O17: 0 | P17: 2 | Q17: 0.4 | R17: 0 | S17: 0 | T17: 28 | U17: 28 | V17: 4 | W17: 16 | X17: 4 | Y17: 14 | Z17: 26 | AA17: 16 | AB17: 116 | AC17: 10 | AD17: 22 | AE17: 64 | AF17: 340 | AG17: 20 | AH17: 24 | AI17: 10 | AJ17: 8 | AK17: 2.06 | AL17: 1.22 | AM17: 0.62 | AN17: 1.22 | AO17: 1.32 | AP17: 9.22 | AQ17: 0.7 | AR17: 11.44 | AS17: 0.36 | AT17: 6.3 | AU17: 0.6 | AV17: 0 | AW17: 0 | AX17: 0 | AY17: 1.64 | AZ17: 14.04 | BA17: 0.14 | BB17: 0 | BC17: 1.26 | BD17: 0.54 | BE17: 1.02 | BF17: 0 | BG17: 0 | BH17: 176.2
A18: Смак | B18: Хлеб пшеничный витаминный | C18: 40 | D18: 2.64 | E18: 0.44 | F18: 16.4 | G18: 70.8 | H18: 9.2 | I18: 0.15 | J18: 1.92 | K18: 0.84 | L18: 0 | M18: 0 | N18: 0 | O18: 0.06 | P18: 0 | Q18: 0 | R18: 0 | S18: 0 | T18: 127.24 | U18: 42.2 | V18: 25.01 | W18: 50.03 | X18: 18.92 | Y18: 90.48 | Z18: 56.12 | AA18: 78.3 | AB18: 64.6 | AC18: 33.93 | AD18: 60.03 | AE18: 501.99 | AF18: 58.73 | AG18: 163.56 | AH18: 71.12 | AI18: 47.2 | AJ18: 37.41 | AK18: 0 | AL18: 0 | AM18: 0 | AN18: 0 | AO18: 0 | AP18: 0 | AQ18: 0.03 | AR18: 0.02 | AS18: 0.02 | AT18: 0 | AU18: 0 | AV18: 0 | AW18: 0 | AX18: 0 | AY18: 0 | AZ18: 0.02 | BA18: 0 | BB18: 0 | BC18: 0.07 | BD18: 0 | BE18: 0 | BF18: 0 | BG18: 0 | BH18: 0
A19: Смак | B19: Хлеб "Дарницкий" | C19: 20 | D19: 3.85 | E19: 0.48 | F19: 16.77 | G19: 94.4 | H19: 17.5 | I19: 16 | J19: 1.92 | K19: 1.95 | L19: 0 | M19: 0 | N19: 0.15 | O19: 0.06 | P19: 0 | Q19: 0 | R19: 0 | S19: 0 | T19: 128.1 | U19: 66.9 | V19: 27.9 | W19: 59.4 | X19: 24 | Y19: 111.3 | Z19: 89.1 | AA19: 87.3 | AB19: 139.2 | AC19: 37.2 | AD19: 93 | AE19: 458.7 | AF19: 81 | AG19: 157.8 | AH19: 87.3 | AI19: 54 | AJ19: 39 | AK19: 0 | AL19: 0 | AM19: 0 | AN19: 0 | AO19: 0 | AP19: 0 | AQ19: 0.06 | AR19: 0.04 | AS19: 0.03 | AT19: 0 | AU19: 0.01 | AV19: 0 | AW19: 0 | AX19: 0 | AY19: 0 | AZ19: 0.03 | BA19: 0 | BB19: 0 | BC19: 0.14 | BD19: 0.02 | BE19: 0 | BF19: 0 | BG19: 0 | BH19: 0
B20: Итого за прием | C20: 855 | D20: =SUM(D13:D19) -> 34.38 | E20: =SUM(E13:E19) -> 31.42 | F20: =SUM(F13:F19) -> 108.95 | G20: =SUM(G13:G19) -> 725.07 | H20: =SUM(H13:H19) -> 243.2 | I20: 112.85 | J20: 437.04 | K20: 7.99 | L20: 6.15 | M20: 221.2 | N20: 0.38 | O20: 25.18 | P20: 37.25 | Q20: 0.4 | R20: 0 | S20: 0 | T20: 1481.48 | U20: 1165.21 | V20: 387.04 | W20: 811.75 | X20: 221.08 | Y20: 907.56 | Z20: 980.97 | AA20: 1148.52 | AB20: 1634.87 | AC20: 578.88 | AD20: 865.83 | AE20: 4279.29 | AF20: 661.36 | AG20: 1326.63 | AH20: 970.31 | AI20: 614.99 | AJ20: 344.02 | AK20: 2.43 | AL20: 1.4 | AM20: 0.71 | AN20: 1.43 | AO20: 1.59 | AP20: 10.4 | AQ20: 0.82 | AR20: 17.15 | AS20: 0.42 | AT20: 10.99 | AU20: 1.28 | AV20: 0.31 | AW20: 0.01 | AX20: 0.2 | AY20: 2.08 | AZ20: 21.83 | BA20: 0.16 | BB20: 0.02 | BC20: 5.9 | BD20: 0.72 | BE20: 1.05 | BF20: 0 | BG20: 0 | BH20: 182.65

Sheet 10
A2: МЕНЮ
A3: День: десятый | E3: сезон : осень-зима
A5: Возрастная категория: Учащиеся с 7 лет и старше
A7: Обед: льготники, ОВЗ, родительская плата
A9: № тех. карты | B9: Наименование блюда | C9: Выход порции, г | D9: Белки, г | E9: Жиры, г | F9: Углеводы, г | G9: ЭЦ, ккал | H9: Ca | I9: Mg | J9: P | K9: Fe | L9: Е,мг | M9: А,мкг | N9: В1,мг | O9: С,мг
B11: Обед | P11: 0 | Q11: 0 | R11: 0 | S11: 19 | T11: 18 | U11: 3 | V11: 11 | W11: 3 | X11: 9 | Y11: 17 | Z11: 10 | AA11: 78 | AB11: 7 | AC11: 14 | AD11: 42 | AE11: 270 | AF11: 13 | AG11: 16 | AH11: 6 | AI11: 5 | AJ11: 0 | AK11: 0 | AL11: 0 | AM11: 0 | AN11: 0 | AO11: 0.03 | AP11: 0.19 | AQ11: 0.06 | AR11: 0.1 | AS11: 0.01 | AT11: 0 | AU11: 0 | AV11: 0 | AW11: 0 | AX11: 0.07 | AY11: 0.04 | AZ11: 0 | BA11: 0 | BB11: 0.49 | BC11: 0.02 | BD11: 0 | BE11: 0 | BF11: 0
A12: 157/пермь, 2018 | B12: кукуруза | C12: 60 | D12: 3.13 | E12: 3.7 | F12: 5.3 | G12: 67 | H12: 19.1 | I12: 18.9 | J12: 57.1 | K12: 0.7 | L12: 0.25 | M12: 19 | N12: 0.08 | O12: 0.05 | P12: 2 | Q12: 0 | R12: 0 | S12: 3394.58 | T12: 1331.79 | U12: 1122.8 | V12: 1335.23 | W12: 438.21 | X12: 2385.56 | Y12: 1948.3 | Z12: 4652.26 | AA12: 4435.56 | AB12: 1160.02 | AC12: 2283.42 | AD12: 10037.45 | AE12: 365.09 | AF12: 2769.84 | AG12: 2060.78 | AH12: 1455.25 | AI12: 568.18 | AJ12: 1.94 | AK12: 2.87 | AL12: 2.22 | AM12: 5.48 | AN12: 0.3 | AO12: 1.48 | AP12: 0.29 | AQ12: 9.69 | AR12: 0.14 | AS12: 3.74 | AT12: 1.71 | AU12: 1.26 | AV12: 0 | AW12: 1.29 | AX12: 0.88 | AY12: 67.71 | AZ12: 0.01 | BA12: 0 | BB12: 26.86 | BC12: 0.9 | BD12: 0.26 | BE12: 0 | BF12: 0
A13: 132 | B13: суп-пюре из картофеля | C13: 250/5 | D13: 5 | E13: 6 | F13: 18 | G13: 146 | H13: 122.12 | I13: 38.3 | J13: 163 | K13: 1.16 | L13: 0 | M13: 38 | N13: 0.08 | O13: 1.24
A14: 385 | B14: Рис отварной (гарнир) | C14: 120 | D14: 4.52 | E14: 6.52 | F14: 1.49 | G14: 14.76 | H14: 3.3 | I14: 21.9 | J14: 70.6 | K14: 0.32 | L14: 0.32 | M14: 30.8 | N14: 0.03 | O14: 0.02 | P14: 0 | Q14: 0 | R14: 0 | S14: 287.64 | T14: 197.4 | U14: 90.24 | V14: 141 | W14: 67.68 | X14: 293.28 | Y14: 228.42 | Z14: 276.36 | AA14: 358.14 | AB14: 129.72 | AC14: 231.24 | AD14: 1350.78 | AE14: 0 | AF14: 738.84 | AG14: 219.96 | AH14: 169.2 | AI14: 112.8 | AJ14: 0.05 | AK14: 0.04 | AL14: 0.02 | AM14: 0.04 | AN14: 0.05 | AO14: 0.01 | AP14: 0.02 | AQ14: 0.1 | AR14: 0.01 | AS14: 0.02 | AT14: 0 | AU14: 0 | AV14: 0 | AW14: 0 | AX14: 0 | AY14: 0.17 | AZ14: 0 | BA14: 0 | BB14: 0.11 | BC14: 0 | BD14: 0.04 | BE14: 0 | BF14: 0
A15: 348/Пермь, 2018 | B15: Тефтели паровые из мяса говядины в томатном соусе | C15: 90/30 | D15: 13 | E15: 10 | F15: 7 | G15: 170 | H15: 60.1 | I15: 22.9 | J15: 44.3 | K15: 0.88 | L15: 0.3 | M15: 17.1 | N15: 0.03 | O15: 0 | P15: 14.2 | Q15: 0 | R15: 0 | S15: 95.31 | T15: 57.04 | U15: 22.39 | V15: 48.69 | W15: 18.73 | X15: 62.24 | Y15: 58.61 | Z15: 98.08 | AA15: 79.17 | AB15: 26.12 | AC15: 47.29 | AD15: 331.28 | AE15: 0.26 | AF15: 85.36 | AG15: 63.07 | AH15: 37.75 | AI15: 24.15 | AJ15: 0.09 | AK15: 0.05 | AL15: 0.02 | AM15: 0.05 | AN15: 0.09 | AO15: 0.23 | AP15: 0.01 | AQ15: 0.55 | AR15: 0.01 | AS15: 0.17 | AT15: 0.42 | AU15: 0.1 | AV15: 0 | AW15: 0 | AX15: 0.07 | AY15: 0.64 | AZ15: 0 | BA15: 0 | BB15: 0.11 | BC15: 0.01 | BD15: 0.01 | BE15: 0 | BF15: 0
A16: 492 | B16: Компот из смородины | C16: ="200" -> 200 | D16: 0.33 | E16: 0 | F16: 22.66 | G16: 91.88 | H16: 3.4 | I16: 1.7 | J16: 2.1 | K16: 0.46 | L16: 0.04 | M16: 0 | N16: 0.01 | O16: 0.6 | P16: 0.2 | Q16: 0 | R16: 0 | S16: 395.52 | T16: 140.08 | U16: 122.01 | V16: 150.51 | W16: 46.34 | X16: 292.46 | Y16: 207.75 | Z16: 516.71 | AA16: 458.84 | AB16: 132.79 | AC16: 278.25 | AD16: 1372.15 | AE16: 35.91 | AF16: 358.44 | AG16: 233.99 | AH16: 158.6 | AI16: 81.56 | AJ16: 0.27 | AK16: 0.32 | AL16: 0.23 | AM16: 0.54 | AN16: 0.08 | AO16: 0.22 | AP16: 0.04 | AQ16: 0.68 | AR16: 0.03 | AS16: 0.24 | AT16: 0.21 | AU16: 0.16 | AV16: 0 | AW16: 0.26 | AX16: 0.12 | AY16: 6.14 | AZ16: 0.01 | BA16: 0 | BB16: 2.94 | BC16: 0.05 | BD16: 0.06 | BE16: 0 | BF16: 0
A17: Смак | B17: Хлеб пшеничный витаминный | C17: 40 | D17: 2.64 | E17: 0.44 | F17: 16.4 | G17: 70.8 | H17: 9.2 | I17: 0.15 | J17: 1.92 | K17: 0.84 | L17: 0 | M17: 0 | N17: 0 | O17: 0.06 | P17: 0 | Q17: 0 | R17: 0 | S17: 35.28 | T17: 41.01 | U17: 24.99 | V17: 109.51 | W17: 6.26 | X17: 33.72 | Y17: 55.73 | Z17: 169.95 | AA17: 159.14 | AB17: 23.3 | AC17: 14.92 | AD17: 216.02 | AE17: 8.46 | AF17: 202.05 | AG17: 143.02 | AH17: 25.97 | AI17: 31.99 | AJ17: 0 | AK17: 0 | AL17: 0.15 | AM17: 0.13 | AN17: 0.01 | AO17: 0.02 | AP17: 0 | AQ17: 0.62 | AR17: 0 | AS17: 0.28 | AT17: 0.05 | AU17: 0 | AV17: 0 | AW17: 0 | AX17: 0.03 | AY17: 1.62 | AZ17: 0 | BA17: 0 | BB17: 1.25 | BC17: 0.11 | BD17: 0 | BE17: 0 | BF17: 0
A18: Смак | B18: Хлеб "Дарницкий" | C18: 20 | D18: 3.85 | E18: 0.48 | F18: 16.77 | G18: 94.4 | H18: 17.5 | I18: 16 | J18: 1.92 | K18: 1.95 | L18: 0 | M18: 0 | N18: 0.15 | O18: 0.06 | P18: 0
B20: Итого за прием | C20: 900 | D20: =SUM(D12:D18) -> 32.47 | E20: 27.14 | F20: 87.62 | G20: 654.84 | H20: 234.72 | I20: 119.85 | J20: 340.94 | K20: 6.31 | L20: 0.91 | M20: 104.9 | N20: 0.38 | O20: 2.03

Sheet Лист1
